fUSD/lending_fUSD_20250622
["ID","MTS","AMOUNT","RATE_DAILY","PERIOD"]
[366886234,1750550959452,158.62,0.00013699,2]
[366886235,1750551024652,202.0,0.00019844,2]
[366886264,1750551033760,-164.64063342,0.00020502,4]
[366886265,1750551033770,-250.0,0.0002067,2]
[366886266,1750551033780,-500.0,0.00020839,2]
[366886267,1750551033789,-248.16,0.00020843,2]
[366886268,1750551033798,-251.43,0.00020843,2]
[366886269,1750551033808,-302.89,0.00020848,2]
[366886270,1750551033818,-250.17,0.00020919,2]
[366886271,1750551033831,-300.89,0.00020936,2]
[366886272,1750551033840,-232.94936658,0.00021135,2]
[366886273,1750551033881,-267.05063342,0.00021135,2]
[366886274,1750551033890,-100.28436658,0.00021176,2]
[366886275,1750551033903,-150.90563342,0.00021176,2]
[366886276,1750551033912,-252.76,0.00021176,2]
[366886277,1750551033924,-250.43,0.00021182,2]
[366886278,1750551033934,-304.97,0.00021204,2]
[366886279,1750551033943,-303.52,0.00021216,2]
[366886280,1750551033954,-202.0,0.0002145,4]
[366886281,1750551033963,-466.4798485,0.00021463,2]
[366886282,1750551033978,-733.5201515,0.00021463,2]
[366886283,1750551033988,-300.0,0.00021464,2]
[366886284,1750551033999,-300.0,0.00021464,2]
[366886285,1750551034008,-4230.4798485,0.00021465,2]
[366886287,1750551037837,-1841.8323314,0.00021465,2]
[366886288,1750551037995,-3701.48983757,0.00021465,2]
[366886289,1750551038007,-1318.45798253,0.00021465,2]
[366886290,1750551038016,-467.0,0.00021492,2]
[366886291,1750551038026,-186.0,0.00021508,2]
[366886292,1750551038035,-420.0,0.00021508,2]
[366886293,1750551038045,-1060.0,0.0002153,2]
[366886294,1750551038055,-166.65,0.00021535,2]
[366886295,1750551038064,-742.0,0.00021552,2]
[366886296,1750551038074,-200.0,0.00021598,2]
[366886297,1750551038088,-247.89,0.00021598,2]
[366886298,1750551038098,-245.97,0.00021598,2]
[366886299,1750551038107,-251.61,0.00021598,2]
[366886300,1750551038117,-162.37875573,0.00021616,2]
[366886301,1750551038265,-503.62124427,0.00021616,2]
[366886302,1750551038275,-304.38,0.00021633,2]
[366886303,1750551038284,-250.0,0.00021637,2]
[366886304,1750551038294,-308.41851064,0.00021767,2]
[366886305,1750551038306,-1050.3968,0.00021767,2]
[366886475,1750551040035,-512.78473588,0.00021767,2]
[366886515,1750551040502,-2829.1326816,0.00021767,2]
[366886517,1750551040514,-3819.19737214,0.00021767,2]
[366886520,1750551040526,-1533.06836664,0.00021767,2]
[366886522,1750551040538,-1891.83830736,0.00021767,2]
[366886524,1750551040549,-1740.0911033,0.00021767,2]
[366886526,1750551040562,-1199.30233872,0.00021767,2]
[366886528,1750551040573,-1034.0,0.00021767,2]
[366886530,1750551040588,-1652.92810158,0.00021767,2]
[366886533,1750551040599,-5248.82986522,0.00021767,2]
[366886535,1750551040611,-257.77900005,0.00021767,2]
[366886995,1750551045018,-822.23281687,0.00021767,2]
[366886996,1750551045028,-500.0,0.00021825,2]
[366886997,1750551045039,-200.0,0.00021845,2]
[366886998,1750551045049,-200.0,0.000219,7]
[366886999,1750551045060,-342.18363875,0.000219,6]
[366887000,1750551045070,-150.0,0.00022001,2]
[366887001,1750551045080,-150.0,0.00022034,2]
[366887003,1750551045094,-342.18363852,0.00022107,6]
[366887005,1750551045104,-1957.856,0.00022141,2]
[366887007,1750551045113,-35.69179254,0.00022141,2]
[366887009,1750551045125,-115.30820746,0.00022141,2]
[366887011,1750551045134,-451.35876653,0.00022141,2]
[366887013,1750551045144,-207.4,0.00022141,2]
[366887015,1750551045154,-1543.959826,0.0002215,2]
[366887018,1750551045166,-49.460174,0.0002215,2]
[366887020,1750551045175,-303.54,0.00022167,2]
[366887022,1750551045185,-253.76,0.00022167,2]
[366887024,1750551045195,-251.62,0.00022167,2]
[366887026,1750551045205,-303.57,0.00022167,2]
[366887027,1750551045215,-304.37,0.00022167,2]
[366887029,1750551045224,-248.62,0.00022167,2]
[366887031,1750551045234,-150.0,0.00022167,2]
[366887033,1750551045244,-90.70852358,0.00022167,2]
[366887036,1750551045256,-59.29147642,0.00022167,2]
[366887038,1750551045266,-150.0,0.00022167,2]
[366887040,1750551045276,-150.0,0.00022167,2]
[366887042,1750551045286,-150.0,0.00022167,2]
[366887044,1750551045296,-150.0,0.00022167,2]
[366887046,1750551045306,-150.0,0.00022167,2]
[366887048,1750551045316,-150.0,0.00022167,2]
[366887050,1750551045325,-150.0,0.00022167,2]
[366887052,1750551045339,-127.52259146,0.00022167,2]
[366887054,1750551045354,-22.47740854,0.00022167,2]
[366887056,1750551045364,-150.0,0.00022167,2]
[366887058,1750551045374,-129.52259146,0.00022167,2]
[366887060,1750551045386,-20.47740854,0.00022167,2]
[366887062,1750551045396,-248.42259146,0.00022196,2]
[366887066,1750551045425,-1781.87408054,0.00022196,2]
[366887068,1750551045435,-569.50230747,0.00022251,2]
[366887070,1750551045447,-1535.91534139,0.00022251,2]
[366887072,1750551045457,-150.0,0.00022301,2]
[366887074,1750551045467,-2183.31810187,0.00022306,2]
[366887076,1750551045477,-342.18363852,0.00022314,7]
[366887078,1750551045486,-150.0,0.00022325,2]
[366887080,1750551045496,-150.0,0.00022343,4]
[366887082,1750551045506,-150.0,0.00022346,2]
[366887084,1750551045515,-249.02,0.00022351,2]
[366887086,1750551045530,-150.0,0.00022352,2]
[366887089,1750551045539,-150.0,0.00022357,4]
[366887090,1750551045549,-2264.10087164,0.00022361,2]
[366887093,1750551045558,-160.01,0.00022414,2]
[366887094,1750551045568,-1014.24516711,0.00022416,2]
[366887097,1750551045580,-1333.62743678,0.00022416,2]
[366887099,1750551045596,-1000.0,0.00022436,2]
[366887101,1750551045606,-2434.74389024,0.00022471,2]
[366887103,1750551045615,-150.0,0.00022475,4]
[366887105,1750551045625,-158.62,0.00022505,2]
[366887107,1750551045634,-150.0,0.00022519,4]
[366887110,1750551045645,-342.18363852,0.00022521,7]
[366887112,1750551045655,-2524.82941417,0.00022526,2]
[366887114,1750551045665,-150.0,0.00022546,4]
[366887116,1750551045675,-500.0,0.00022552,2]
[366887118,1750551045684,-250.0,0.00022552,2]
[366887120,1750551045694,-250.0,0.00022552,2]
[366887123,1750551045703,-2618.2481025,0.00022581,2]
[366887125,1750551045713,-2715.12328229,0.00022636,2]
[366887127,1750551045724,-150.0,0.00022648,2]
[366887129,1750551045733,-1220.42425548,0.00022691,2]
[366887132,1750551045744,-514.537486,0.00022691,2]
[366887136,1750551045776,-1080.62110226,0.00022691,2]
[366887138,1750551045786,-150.0,0.00022695,4]
[366887140,1750551045798,-500.0,0.000227,8]
[366887142,1750551045807,-342.18363852,0.00022728,7]
[366887144,1750551045817,-150.0,0.00022736,4]
[366887146,1750551045826,-2919.75940895,0.00022746,2]
[366887148,1750551045837,-218.0,0.00022782,2]
[366887150,1750551045854,-150.0,0.00022783,4]
[366887153,1750551045863,-150.0,0.00022783,4]
[366887155,1750551045873,-1000.0,0.000228,8]
[366887157,1750551045883,-3027.79050709,0.00022801,2]
[366887159,1750551045892,-3139.81875585,0.00022856,2]
[366887161,1750551045901,-150.0,0.00022871,4]
[366887163,1750551045914,-1500.0,0.000229,8]
[366887165,1750551045925,-3255.99204981,0.00022911,2]
[366887167,1750551045934,-150.0,0.00022925,4]
[366887169,1750551045944,-342.18363852,0.00022934,8]
[366887171,1750551045954,-2505.04271378,0.00022966,2]
[366887173,1750551045964,-455.38,0.00022986,2]
[366887175,1750551045973,-150.0,0.00022986,2]
[366887177,1750551045983,-150.0,0.00022988,4]
[366887179,1750551045993,-7135.0,0.00022994,2]
[366887181,1750551046002,-156.0,0.00022994,2]
[366887183,1750551046011,-855.0,0.00022994,2]
[366887185,1750551046021,-150.0,0.00023047,4]
[366887187,1750551046030,-202.0,0.00023057,6]
[366887220,1750551046328,-150.0,0.00023091,4]
[366887226,1750551046384,-150.0,0.00023102,2]
[366887228,1750551046395,-150.0,0.00023114,4]
[366887230,1750551046404,-342.18363852,0.00023141,8]
[366887232,1750551046414,-150.0,0.00023157,2]
[366887234,1750551046423,-150.0,0.00023161,2]
[366887235,1750551046433,-195.5976,0.00023173,2]
[366887237,1750551046442,-8739.84228349,0.00023174,2]
[366887239,1750551046452,-372.28544345,0.00023174,2]
[366887241,1750551046461,-150.0,0.00023223,4]
[366887243,1750551046471,-150.0,0.00023224,2]
[366887245,1750551046482,-200.0,0.00023231,2]
[366887248,1750551046491,-151.0,0.0002324,7]
[366887249,1750551046501,-151.0,0.0002324,7]
[366887252,1750551046511,-372.28544333,0.00023246,2]
[366887254,1750551046521,-150.0,0.00023249,2]
[366887256,1750551046531,-2089.68,0.0002326,2]
[366887258,1750551046540,-338.0,0.0002326,2]
[366887260,1750551046550,-1000.0,0.00023262,2]
[366887262,1750551046559,-4250.6887,0.00023262,2]
[366887264,1750551046569,-5610.36503632,0.00023263,2]
[366887266,1750551046579,-409.43,0.00023263,2]
[366887268,1750551046592,-288.6516,0.00023272,2]
[366887270,1750551046602,-104801.87668911,0.00023273,2]
[366887272,1750551046614,-8117.78791089,0.00023273,2]
[366887274,1750551046624,-200.0,0.00023274,2]
[366887276,1750551046633,-409.43,0.0002328,2]
[366887278,1750551046643,-5535.26449659,0.0002328,2]
[366887286,1750551046704,-366.70998102,0.0002328,2]
[366887311,1750551046941,-418.78789943,0.0002328,2]
[366888293,1750551071648,201.0,0.00019844,2]
[366888296,1750551218674,250.0,0.00015,2]
[366888297,1750551221776,202.0,0.00019844,2]
[366888298,1750551324158,-300.0,0.000227,8]
[366888299,1750551324183,-6.2752252,0.000228,8]
[366888300,1750551324333,-593.7247748,0.000228,8]
[366888301,1750551324369,-306.27522524,0.000229,8]
[366888302,1750551324394,-900.0,0.000229,8]
[366888303,1750551324427,-306.2752252,0.00023072,8]
[366888304,1750551324460,-306.2752252,0.00023245,8]
[366888305,1750551324483,-151.0,0.00023362,7]
[366888306,1750551324504,-186.347892,0.00023362,7]
[366888307,1750551324525,-186.347892,0.00023362,7]
[366888308,1750551324546,-100.47293756,0.00023368,7]
[366888309,1750551325271,-104.42801044,0.00023368,7]
[366888310,1750551325292,-204.900948,0.00023368,7]
[366888311,1750551325313,-151.0,0.00023368,7]
[366888312,1750551325433,-151.0,0.00023372,7]
[366888313,1750551325740,-151.0,0.00023372,7]
[366888314,1750551325767,-114.487668,0.00023372,7]
[366888315,1750551325818,-150.0,0.00023304,4]
[366888316,1750551325840,-36.512332,0.00023372,7]
[366888317,1750551325862,-156.254377,0.00023372,7]
[366888318,1750551325884,-156.254377,0.00023372,7]
[366888319,1750551325905,-100.978914,0.00023372,7]
[366888320,1750551325952,-55.275463,0.00023372,7]
[366888321,1750551325975,-156.254377,0.00023372,7]
[366888322,1750551325998,-151.0,0.00023372,7]
[366888323,1750551326020,-151.0,0.00023372,7]
[366888324,1750551326041,-204.900948,0.00023372,7]
[366888325,1750551326065,-204.900948,0.00023372,7]
[366888326,1750551326086,-204.900948,0.00023372,7]
[366888327,1750551326108,-204.900948,0.00023372,7]
[366888328,1750551326129,-151.0,0.00023372,7]
[366888329,1750551326151,-186.347892,0.00023372,7]
[366888330,1750551326172,-186.347892,0.00023372,7]
[366888331,1750551326196,-186.347892,0.00023372,7]
[366888332,1750551326217,-186.347892,0.00023372,7]
[366888333,1750551326300,-151.0,0.00023373,7]
[366888334,1750551326324,-151.0,0.00023373,7]
[366888335,1750551326345,-151.0,0.00023373,7]
[366888336,1750551326366,-151.0,0.00023373,7]
[366888337,1750551326389,-151.0,0.00023373,7]
[366888338,1750551326409,-151.0,0.00023373,7]
[366888339,1750551326430,-280.712738,0.00023373,7]
[366888340,1750551326451,-151.0,0.00023373,7]
[366888341,1750551326471,-151.0,0.00023373,7]
[366888342,1750551326493,-129.70093,0.00023373,7]
[366888343,1750551326536,-21.29907,0.00023373,7]
[366888344,1750551326556,-151.0,0.00023373,7]
[366888345,1750551326580,-156.254377,0.00023373,7]
[366888346,1750551326601,-156.254377,0.00023373,7]
[366888347,1750551326621,-151.0,0.00023373,7]
[366888348,1750551326642,-204.900948,0.00023373,7]
[366888349,1750551326663,-204.900948,0.00023373,7]
[366888350,1750551326683,-186.347892,0.00023373,7]
[366888351,1750551326704,-57.246926,0.00023373,7]
[366888352,1750551326916,-129.100966,0.00023373,7]
[366888353,1750551326937,-204.900948,0.00023379,7]
[366888354,1750551326957,-204.900948,0.00023379,7]
[366888355,1750551326979,-151.0,0.00023379,7]
[366888356,1750551327002,-151.0,0.00023379,7]
[366888357,1750551327023,-151.611772,0.00023379,7]
[366888358,1750551327044,-151.0,0.00023379,7]
[366888359,1750551327067,-151.0,0.00023379,7]
[366888360,1750551327091,-151.0,0.00023379,7]
[366888361,1750551327111,-151.0,0.00023379,7]
[366888362,1750551327132,-151.0,0.00023379,7]
[366888363,1750551327154,-151.0,0.00023399,7]
[366888364,1750551327174,-151.0,0.00023399,7]
[366888365,1750551327195,-151.0,0.00023399,7]
[366888366,1750551327217,-211.523701,0.00023399,7]
[366888367,1750551327240,-211.523701,0.00023399,7]
[366888368,1750551327261,-151.0,0.00023399,7]
[366888369,1750551327282,-834.26476573,0.00023399,7]
[366888370,1750551327303,-151.0,0.00023413,7]
[366888371,1750551327330,-151.0,0.00023413,7]
[366888372,1750551327351,-151.0,0.00023413,7]
[366888373,1750551327372,-156.254377,0.00023413,7]
[366888374,1750551327396,-156.254377,0.00023413,7]
[366888375,1750551327419,-151.0,0.00023413,7]
[366888376,1750551327441,-186.347892,0.00023413,7]
[366888377,1750551327463,-186.347892,0.00023413,7]
[366888378,1750551327484,-204.900948,0.00023416,7]
[366888379,1750551327505,-204.900948,0.00023416,7]
[366888380,1750551327527,-151.0,0.00023416,7]
[366888381,1750551327549,-151.0,0.00023416,7]
[366888382,1750551327579,-211.869827,0.00023416,7]
[366888383,1750551327602,-151.0,0.00023416,7]
[366888384,1750551327625,-151.0,0.00023416,7]
[366888385,1750551327659,-306.2752252,0.00023417,9]
[366888386,1750551327680,-151.0,0.00023421,7]
[366888387,1750551327702,-265.487668,0.00023421,7]
[366888388,1750551327726,-365.84313446,0.00023425,30]
[366888389,1750551327755,-151.0,0.00023459,7]
[366888390,1750551327783,-219.123617,0.00023459,7]
[366888391,1750551327807,-156.095172,0.00023459,7]
[366888392,1750551327837,-151.0,0.00023459,7]
[366888393,1750551327859,-220.009065,0.00023459,7]
[366888394,1750551327881,-849.041866,0.00023459,7]
[366888395,1750551327904,-849.041866,0.00023459,7]
[366888396,1750551327927,-151.0,0.00023459,7]
[366888397,1750551327947,-151.0,0.00023459,7]
[366888398,1750551327966,-151.0,0.0002346,7]
[366888399,1750551327989,-127.53718031,0.0002346,7]
[366888400,1750551328029,-23.46281969,0.0002346,7]
[366888401,1750551328049,-180.757081,0.0002346,7]
[366888402,1750551328077,-180.757081,0.0002346,7]
[366888403,1750551328096,-151.0,0.0002346,7]
[366888404,1750551328118,-151.0,0.0002346,7]
[366888405,1750551328140,-151.0,0.0002346,7]
[366888406,1750551328164,-242.537724,0.0002346,7]
[366888407,1750551328187,-151.0,0.00023462,7]
[366888408,1750551328208,-789.815155,0.00023462,7]
[366888409,1750551328230,-789.815155,0.00023462,7]
[366888410,1750551328251,-41.47178231,0.00023462,7]
[366888411,1750551376226,151.0,0.00023416,7]
[366888412,1750551386373,151.0,0.00023396,7]
[366888413,1750551481776,151.0,0.00023372,7]
[366888414,1750551482300,151.0,0.000234,7]
[366888415,1750551497071,151.0,0.00023372,7]
[366888416,1750551497447,151.0,0.000234,7]
[366888417,1750551533932,151.0,0.00023372,7]
[366888418,1750551534404,151.0,0.00023414,7]
[366888419,1750551558702,151.051886,0.00023396,7]
[366888420,1750551558729,1225.671723,0.00023396,7]
[366888421,1750551558751,842.81322,0.00023396,7]
[366888422,1750551563690,184.234182,0.00023396,7]
[366888423,1750551576324,265.4385287,0.000229,8]
[366888424,1750551576639,265.4385285,0.00023072,8]
[366888425,1750551577026,265.4385285,0.00023245,8]
[366888426,1750551577321,265.4385285,0.00023417,9]
[366888428,1750551663506,359.0,0.0001965,2]
[366888429,1750551694600,365.84313446,0.00022,30]
[366888430,1750551694627,40.8366967,0.00022,30]
[366888431,1750551694648,70.1720823,0.00022,30]
[366888432,1750551694670,100.47293756,0.00022,30]
[366888433,1750551694690,523.695784,0.00022,30]
[366888434,1750551694712,306.2752252,0.00022,30]
[366888435,1750551694734,900.0,0.00022,30]
[366888436,1750551694756,306.27522524,0.00022,30]
[366888437,1750551694776,386.48624308,0.00022,30]
[366888440,1750551923165,17423.01171809,0.0002,5]
[366888441,1750551930788,10343.49888684,0.000199,2]
[366888442,1750551930819,10000.0,0.000199,2]
[366888443,1750551930844,10000.0,0.000199,2]
[366888444,1750551930869,3843.98847388,0.000199,2]
[366888653,1750551955976,6156.01152612,0.0001625,2]
[366888654,1750551955998,10000.0,0.0001625,2]
[366888655,1750551956019,10000.0,0.0001625,2]
[366888656,1750551956042,5111.40980663,0.0001625,2]
[366888657,1750552027622,213.51375692,0.000227,8]
[366889237,1750552101758,155.8,0.00013699,2]
[366889238,1750552111605,4732.79019337,0.00019889,2]
[366889239,1750552111628,10.62253182,0.00019889,2]
[366889243,1750552125609,2012.16240605,0.000135,2]
[366889251,1750552231981,-359.0,0.0002014,2]
[366889252,1750552231991,-359.0,0.0002063,2]
[366889253,1750552232001,-359.0,0.0002113,2]
[366889254,1750552232011,-359.0,0.0002162,2]
[366889255,1750552232021,-202.0,0.00021663,2]
[366889256,1750552232031,-300.0,0.00021727,2]
[366889257,1750552232041,-300.0,0.00021727,2]
[366889258,1750552232051,-1200.0,0.00021727,2]
[366889259,1750552232062,-21673.32,0.00021728,2]
[366889260,1750552232072,-150.35,0.00021738,2]
[366889261,1750552232083,-535.6364135,0.00021768,2]
[366889262,1750552232093,-535.6364135,0.00021854,2]
[366889263,1750552232103,-254.29,0.00021868,2]
[366889264,1750552232113,-246.24,0.00021868,2]
[366889265,1750552232123,-301.75,0.00021868,2]
[366889266,1750552232134,-2627.08,0.00021868,2]
[366889267,1750552232144,-151.0,0.00021941,2]
[366889268,1750552232155,-200.39464273,0.00021941,2]
[366889269,1750552232166,-151.0,0.00021941,2]
[366889270,1750552232177,-151.0,0.00021941,2]
[366889271,1750552232187,-198.0,0.00021941,2]
[366889272,1750552232198,-300.0,0.00021951,2]
[366889273,1750552232208,-252.44,0.00021953,2]
[366889313,1750552232656,-301.13,0.00021953,2]
[366889316,1750552232678,-246.57,0.00021953,2]
[366889318,1750552232688,-245.64,0.00021953,2]
[366889320,1750552232699,-301.75,0.00021953,2]
[366889321,1750552232709,-248.12,0.00021953,2]
[366889322,1750552232718,-250.2,0.00021953,2]
[366889323,1750552232727,-305.81,0.00021953,2]
[366889324,1750552232737,-666.0,0.00021954,2]
[366889325,1750552232746,-254.69,0.00021954,2]
[366889326,1750552232756,-247.65,0.00021954,2]
[366889327,1750552232766,-304.01,0.00021954,2]
[366889328,1750552232777,-245.74,0.00021954,2]
[366889329,1750552232791,-300.82,0.00021954,2]
[366889330,1750552232801,-245.24,0.00021954,2]
[366889331,1750552232810,-251.37,0.00021954,2]
[366889332,1750552232820,-301.11,0.00021954,2]
[366889334,1750552232830,-249.47,0.00021954,2]
[366889336,1750552232840,-250.07,0.00021954,2]
[366889338,1750552232849,-302.8,0.00021954,2]
[366889340,1750552232858,-250.96,0.00021954,2]
[366889342,1750552232868,-251.2,0.00021954,2]
[366889344,1750552232877,-300.43,0.00021954,2]
[366889346,1750552232887,-247.17,0.00021954,2]
[366889348,1750552232897,-248.15,0.00021954,2]
[366889350,1750552232907,-250.1,0.00021954,2]
[366889352,1750552232918,-305.13,0.00021954,2]
[366889354,1750552232929,-245.72,0.00021954,2]
[366889356,1750552232938,-250.68,0.00021954,2]
[366889358,1750552232948,-301.92,0.00021954,2]
[366889360,1750552232958,-247.33,0.00021954,2]
[366889362,1750552232967,-247.05,0.00021954,2]
[366889364,1750552232977,-304.59,0.00021954,2]
[366889366,1750552232986,-0.08515252,0.00021954,2]
[366889368,1750552232998,-247.87484748,0.00021954,2]
[366889369,1750552233008,-247.14,0.00021954,2]
[366889370,1750552233017,-302.29,0.00021954,2]
[366889371,1750552233027,-164.6778826,0.00021996,2]
[366889372,1750552233040,-1354.0,0.00022007,2]
[366889373,1750552233050,-826.0,0.00022007,2]
[366889374,1750552233060,-359.0,0.0002211,2]
[366889375,1750552233070,-837.0,0.00022117,2]
[366889376,1750552233079,-1837.0,0.00022117,2]
[366889377,1750552233089,-151.0,0.00022141,2]
[366889378,1750552233098,-500.0,0.00022141,2]
[366889379,1750552233107,-500.0,0.00022141,2]
[366889380,1750552233116,-500.0,0.00022141,2]
[366889381,1750552233126,-500.0,0.00022141,2]
[366889383,1750552233135,-500.0,0.00022141,2]
[366889385,1750552233145,-1957.856,0.00022141,2]
[366889387,1750552233155,-500.0,0.00022141,2]
[366889389,1750552233166,-500.0,0.00022141,2]
[366889390,1750552233175,-500.0,0.00022141,2]
[366889392,1750552233185,-188.24571073,0.00022141,2]
[366889395,1750552233196,-500.0,0.00022141,2]
[366889397,1750552233206,-500.0,0.00022141,2]
[366889399,1750552233216,-500.0,0.00022141,2]
[366889400,1750552233227,-500.0,0.00022141,2]
[366889403,1750552233237,-266.44800324,0.00022141,2]
[366889405,1750552233247,-207.4,0.00022141,2]
[366889407,1750552233260,-161.3,0.00022148,2]
[366889408,1750552233271,-254.58,0.00022148,2]
[366889409,1750552233281,-253.3,0.00022148,2]
[366889410,1750552233293,-249.27,0.00022148,2]
[366889411,1750552233303,-245.01,0.00022148,2]
[366889412,1750552233313,-254.49,0.00022148,2]
[366889413,1750552233331,-305.05,0.00022148,2]
[366889414,1750552233345,-300.06,0.00022148,2]
[366889415,1750552233356,-304.86,0.00022148,2]
[366889416,1750552233366,-250.87,0.00022148,2]
[366889417,1750552233377,-253.18,0.00022148,2]
[366889418,1750552233387,-304.84,0.00022148,2]
[366889419,1750552233398,-150.82,0.00022148,2]
[366889420,1750552233409,-253.37,0.00022148,2]
[366889421,1750552233419,-254.48,0.00022148,2]
[366889422,1750552233429,-303.92,0.00022148,2]
[366889423,1750552233442,-246.54,0.00022149,2]
[366889424,1750552233453,-245.13,0.00022149,2]
[366889425,1750552233464,-247.85,0.00022149,2]
[366889426,1750552233474,-304.37,0.00022149,2]
[366889427,1750552233485,-302.0,0.00022149,2]
[366889428,1750552233498,-151.55,0.0002215,2]
[366889429,1750552233508,-248.72,0.00022152,2]
[366889430,1750552233518,-254.0,0.00022152,2]
[366889431,1750552233531,-252.37,0.00022152,2]
[366889432,1750552233542,-245.38,0.00022152,2]
[366889433,1750552233553,-150.3,0.00022156,2]
[366889434,1750552233563,-254.67,0.00022164,2]
[366889435,1750552233574,-252.23,0.00022164,2]
[366889436,1750552233584,-301.94,0.00022164,2]
[366889437,1750552233594,-252.45,0.00022164,2]
[366889438,1750552233606,-1000.0,0.00022166,2]
[366889439,1750552233617,-150.0,0.00022167,2]
[366889440,1750552233628,-150.0,0.00022167,2]
[366889441,1750552233638,-150.0,0.00022167,2]
[366889442,1750552233649,-150.0,0.00022167,2]
[366889443,1750552233660,-150.0,0.00022167,2]
[366889444,1750552233671,-150.0,0.00022167,2]
[366889445,1750552233681,-150.0,0.00022167,2]
[366889446,1750552233692,-150.0,0.00022167,2]
[366889447,1750552233703,-150.0,0.00022167,2]
[366889448,1750552233713,-245.03,0.00022195,2]
[366889449,1750552233724,-2030.296672,0.00022196,2]
[366889450,1750552233735,-248.2,0.00022222,2]
[366889451,1750552233746,-300.07,0.00022222,2]
[366889452,1750552233757,-150.86,0.00022222,2]
[366889453,1750552233768,-305.4,0.00022222,2]
[366889454,1750552233780,-245.6,0.00022222,2]
[366889455,1750552233793,-301.09,0.00022222,2]
[366889456,1750552233804,-551.66,0.00022222,2]
[366889457,1750552233815,-250.0,0.00022222,2]
[366889458,1750552233825,-5318.71,0.00022222,2]
[366889459,1750552233836,-203.0,0.00022226,2]
[366889460,1750552233847,-2105.41764886,0.00022251,2]
[366889461,1750552233858,-180.0,0.00022306,2]
[366889462,1750552233868,-2183.31810187,0.00022306,2]
[366889463,1750552233879,-235.0,0.00022336,2]
[366889464,1750552233889,-726.8867647,0.00022361,2]
[366889465,1750552233899,-166.43,0.00022365,2]
[366889466,1750552233909,-150.0,0.00022413,4]
[366889467,1750552233919,-1528.0,0.00022445,2]
[366889468,1750552233929,-150.0,0.00022475,4]
[366889469,1750552233939,-155.8,0.00022505,2]
[366889470,1750552233950,-150.0,0.00022519,4]
[366889471,1750552233960,-1101.0,0.00022555,2]
[366889472,1750552233971,-359.0,0.000226,2]
[366889473,1750552233982,-150.0,0.0002266,4]
[366889474,1750552233992,-150.0,0.0002266,4]
[366889475,1750552234002,-393.0,0.00022664,2]
[366889476,1750552234012,-863.01161837,0.00022684,2]
[366889477,1750552234022,-150.59,0.000227,2]
[366889478,1750552234037,-246.63,0.000227,2]
[366889479,1750552234048,-152.78,0.000227,2]
[366889480,1750552234058,-302.07,0.000227,2]
[366889481,1750552234070,-249.04,0.000227,2]
[366889482,1750552234081,-249.12,0.000227,2]
[366889483,1750552234091,-304.63,0.000227,2]
[366889484,1750552234102,-245.46,0.000227,2]
[366889485,1750552234114,-151.77,0.000227,2]
[366889486,1750552234125,-248.74,0.000227,2]
[366889487,1750552234137,-300.39,0.000227,2]
[366889488,1750552234147,-245.97,0.000227,2]
[366889489,1750552234158,-253.98,0.000227,2]